bitfinex-derivatives/quotes_BTCF0:USTF0_20260314
["timestamp","ask_amount","ask_price","bid_price","bid_amount"]
[1773475676273,0.0014,70720.0,70710.0,0.04242]
[1773475677076,0.0014,70719.0,70710.0,0.04242]
[1773475679078,0.0024,70719.0,70710.0,0.04242]
[1773475679578,0.0650681,70718.0,70697.0,0.25408105]
[1773475679769,0.0650681,70718.0,70690.0,0.31766406]
[1773475679770,0.0650681,70718.0,70700.0,0.042425]
[1773475680171,0.0650681,70714.0,70701.0,0.042425]
[1773475680474,0.0664681,70713.0,70701.0,0.042425]
[1773475680866,0.0014,70713.0,70695.0,0.06742075]
[1773475681071,0.001,70719.0,70689.0,0.06742075]
[1773475681275,0.31132,70718.0,70710.0,0.042419]
[1773475681473,0.31372,70718.0,70710.0,0.04242]
[1773475682079,0.001,70718.0,70708.0,0.042421]
[1773475682272,0.0014,70717.0,70708.0,0.042421]
[1773475682673,0.0014,70717.0,70709.0,0.04242]
[1773475682873,0.0014,70717.0,70710.0,0.042419]
[1773475683484,0.0024,70717.0,70710.0,0.042419]
[1773475683677,0.0014,70716.0,70710.0,0.042419]
[1773475685893,0.0034,70716.0,70711.0,0.042419]
[1773475686687,0.002,70716.0,70711.0,0.042419]
[1773475686874,0.0014,70715.0,70711.0,0.042419]
[1773475687487,0.0014,70715.0,70708.0,0.042421]
[1773475688288,0.0014,70715.0,70709.0,0.04242]
[1773475690888,0.0014,70715.0,70710.0,0.04242]
[1773475691585,0.0014,70714.0,70710.0,0.04242]
[1773475691789,0.0014,70713.0,70710.0,0.04242]
[1773475692088,0.0014,70712.0,70710.0,0.04242]
[1773475692281,0.0014,70711.0,70710.0,0.04242]
[1773475692480,0.042412,70723.0,70710.0,0.04242]
[1773475692688,0.0014,70722.0,70710.0,0.12970643]
[1773475692986,0.0014,70722.0,70711.0,0.042419]
[1773475695083,0.0034,70722.0,70711.0,0.042419]
[1773475695586,0.0014,70722.0,70711.0,0.042419]
[1773475699601,0.043813,70722.0,70711.0,0.042419]
[1773475700781,0.044813,70722.0,70711.0,0.042419]
[1773475701391,0.045813,70722.0,70711.0,0.042419]
[1773475705294,0.043813,70722.0,70711.0,0.042419]
[1773475710693,0.0014,70722.0,70711.0,0.042419]
[1773475711995,0.043813,70722.0,70710.0,0.12970643]
[1773475713084,0.31128,70721.0,70710.0,0.38378748]
[1773475713285,0.0014,70720.0,70710.0,0.38378748]
[1773475713697,0.0014,70719.0,70710.0,0.38378748]
[1773475713898,0.0014,70718.0,70710.0,0.38378748]
[1773475715292,0.31128,70721.0,70710.0,0.38378748]
[1773475715503,0.0014,70717.0,70710.0,0.38378748]
[1773475715700,0.0014,70716.0,70710.0,0.38378748]
[1773475715996,0.0014,70715.0,70710.0,0.38378748]
[1773475716198,0.0014,70714.0,70710.0,0.38378748]
[1773475716496,0.0014,70713.0,70711.0,0.042419]
[1773475716700,0.0014,70712.0,70711.0,0.042419]
[1773475717090,0.31128,70721.0,70711.0,0.042419]
[1773475717599,0.0014,70720.0,70711.0,0.042419]
[1773475717902,0.0014,70719.0,70711.0,0.042419]
[1773475718102,0.0014,70718.0,70711.0,0.042419]
[1773475718290,0.31128,70721.0,70711.0,0.042419]
[1773475718490,0.0014,70720.0,70711.0,0.042419]
[1773475718692,0.0014,70719.0,70711.0,0.042419]
[1773475718995,0.0014,70718.0,70711.0,0.042419]
[1773475719295,0.31128,70721.0,70711.0,0.042419]
[1773475719496,0.31128,70720.0,70711.0,0.042419]
[1773475719802,0.0014,70719.0,70711.0,0.042419]
[1773475723501,0.31128,70721.0,70711.0,0.042419]
[1773475723702,0.0014,70720.0,70711.0,0.042419]
[1773475726498,0.31128,70721.0,70711.0,0.042419]
[1773475726706,0.0014,70720.0,70711.0,0.042419]
[1773475732501,0.042411,70725.0,70712.0,0.11052069]
[1773475732708,0.26108152,70721.0,70715.0,0.08728643]
[1773475732908,0.26108152,70721.0,70712.0,0.11052069]
[1773475733108,0.31128,70721.0,70712.0,0.11052069]
[1773475733407,0.0014,70720.0,70712.0,0.11052069]
[1773475735309,0.0014,70719.0,70712.0,0.11052069]
[1773475736007,0.31128,70722.0,70712.0,0.11052069]
[1773475736202,0.042411,70725.0,70712.0,0.11052069]
[1773475736408,0.31128,70721.0,70712.0,0.11052069]
[1773475736808,0.0014,70720.0,70712.0,0.11052069]
[1773475738604,0.0014,70719.0,70712.0,0.11052069]
[1773475738800,0.00046937,70719.0,70712.0,0.11052069]
[1773475739610,0.00046937,70719.0,70715.0,0.16931245]
[1773475740312,0.0014,70718.0,70715.0,0.16931245]
[1773475740516,0.0014,70717.0,70715.0,0.16931245]
[1773475740815,0.31128,70722.0,70715.0,0.16931245]
[1773475741015,0.0014,70721.0,70715.0,0.16931245]
[1773475741416,0.0014,70720.0,70715.0,0.16091245]
[1773475741711,0.042418,70714.0,70700.0,0.08728643]
[1773475741908,0.0014,70713.0,70702.0,0.042424]
[1773475742504,0.0014,70713.0,70704.0,0.042423]
[1773475743916,0.0014,70713.0,70702.0,0.042424]
[1773475744209,0.0014,70713.0,70703.0,0.042424]
[1773475744510,0.0014,70713.0,70701.0,0.042425]
[1773475744706,0.0014,70713.0,70702.0,0.042424]
[1773475745507,0.0014,70713.0,70700.0,0.08728643]
[1773475745716,0.0014,70712.0,70703.0,0.15538812]
[1773475745908,0.0014,70711.0,70707.0,0.11052269]
[1773475746212,0.0014,70711.0,70707.0,0.042421]
[1773475746611,0.0014,70711.0,70705.0,0.042423]
[1773475747115,0.0014,70711.0,70707.0,0.06810169]
[1773475748218,0.0014,70711.0,70706.0,0.042422]
[1773475748518,0.0014,70710.0,70706.0,0.11052369]
[1773475749218,0.0014,70710.0,70707.0,0.06810169]
[1773475749511,0.31128,70717.0,70707.0,0.06810169]
[1773475749717,0.0014,70716.0,70707.0,0.06810169]
[1773475750218,0.31128,70717.0,70707.0,0.06810169]
[1773475750418,0.0014,70716.0,70707.0,0.06810169]
[1773475750815,0.0014,70715.0,70707.0,0.06810169]
[1773475751019,0.0014,70714.0,70707.0,0.06810169]
[1773475751317,0.31128,70717.0,70707.0,0.06810169]
[1773475751318,0.0014,70713.0,70707.0,0.06810169]
[1773475751710,0.001,70716.0,70707.0,0.06810169]
[1773475751913,0.0014,70715.0,70707.0,0.06810169]
[1773475752315,0.0014,70714.0,70707.0,0.06810169]
[1773475752720,0.28726954,70717.0,70707.0,0.06810169]
[1773475753019,0.0014,70716.0,70707.0,0.06810169]
[1773475753219,0.28726954,70717.0,70707.0,0.06810169]
[1773475753424,0.0014,70716.0,70707.0,0.06810169]
[1773475753918,0.0014,70716.0,70706.0,0.042422]
[1773475754219,0.233106,70717.0,70706.0,0.042422]
[1773475754421,0.0014,70716.0,70713.0,0.042418]
[1773475754625,0.0014,70716.0,70713.0,0.03184141]
[1773475754920,0.0014,70716.0,70707.0,0.06810169]
[1773475755219,0.0014,70716.0,70711.0,0.042419]
[1773475755426,0.0014,70716.0,70708.0,0.042421]
[1773475755823,0.0014,70716.0,70709.0,0.04242]
[1773475756124,0.0014,70715.0,70707.0,0.06810169]
[1773475756312,0.0014,70714.0,70707.0,0.06810169]
[1773475757023,0.0014,70714.0,70709.0,0.04242]
[1773475762529,0.0014,70714.0,70709.0,0.11365382]
[1773475763027,0.0014,70713.0,70709.0,0.07123382]
[1773475763221,0.31128,70721.0,70709.0,0.07123382]
[1773475763528,0.0014,70720.0,70709.0,0.07123382]
[1773475763728,0.31128,70721.0,70709.0,0.07123382]
[1773475763930,0.0014,70720.0,70709.0,0.07123382]
[1773475764225,0.042412,70724.0,70710.0,0.08729722]
[1773475764432,0.0014,70723.0,70711.0,0.07123382]
[1773475764727,0.001,70721.0,70711.0,0.07123382]
[1773475764928,0.001,70721.0,70712.0,0.042419]
[1773475765130,0.0014,70720.0,70712.0,0.042419]
[1773475765327,0.0014,70720.0,70712.0,0.11365282]
[1773475765519,0.043412,70724.0,70712.0,0.11365282]
[1773475765720,0.001,70721.0,70712.0,0.11365282]
[1773475766230,0.0014,70720.0,70712.0,0.07123382]
[1773475766432,0.0014,70719.0,70712.0,0.07123382]
[1773475766629,0.0014,70718.0,70712.0,0.07123382]
[1773475766929,0.0014,70717.0,70712.0,0.07123382]
[1773475767133,0.001,70721.0,70716.0,0.042416]
[1773475767424,0.0014,70720.0,70716.0,0.042416]
[1773475767617,0.0014,70719.0,70712.0,0.07123382]
[1773475767820,0.31128,70724.0,70712.0,0.07123382]
[1773475768015,0.0014,70723.0,70712.0,0.07123382]
[1773475768219,0.0014,70723.0,70711.0,0.042419]
[1773475768730,0.0014,70723.0,70712.0,0.042418]
[1773475769631,0.043812,70723.0,70711.0,0.042419]
[1773475769831,0.043812,70723.0,70710.0,0.08729722]
[1773475770032,0.043812,70723.0,70711.0,0.042419]
[1773475770232,0.044812,70723.0,70711.0,0.042419]
[1773475774237,0.043812,70723.0,70711.0,0.042419]
[1773475774431,0.044812,70723.0,70711.0,0.042419]
[1773475774643,0.0024,70723.0,70710.0,0.08729722]
[1773475774826,0.0014,70723.0,70710.0,0.08729722]
[1773475775026,0.0024,70723.0,70711.0,0.07123382]
[1773475775931,0.0024,70723.0,70713.0,0.042418]
[1773475776143,0.33394686,70722.0,70708.0,0.042421]
[1773475776328,0.042413,70722.0,70708.0,0.042421]
[1773475777040,0.21585801,70721.0,70708.0,0.042421]
[1773475777336,0.042413,70722.0,70710.0,0.08729722]
[1773475777538,0.21585953,70721.0,70710.0,0.08729722]
[1773475777732,0.042413,70722.0,70710.0,0.08729722]
[1773475777940,0.21585953,70721.0,70710.0,0.08729722]
[1773475778234,0.21585953,70721.0,70689.0,0.03623256]
[1773475778235,0.042415,70719.0,70700.0,0.08729722]
[1773475778534,0.042415,70719.0,70707.0,0.042421]
[1773475778735,0.042413,70721.0,70707.0,0.042421]
[1773475778924,0.21587471,70720.0,70707.0,0.042421]
[1773475779128,0.042413,70721.0,70707.0,0.042421]
[1773475779327,0.21587471,70720.0,70707.0,0.042421]
[1773475779527,0.07672678,70723.0,70690.0,0.08729722]
[1773475779528,0.07532678,70713.0,70690.0,0.08729722]
[1773475779729,0.042422,70707.0,70692.0,0.04243]
[1773475779929,0.00022,70701.0,70693.0,0.11366382]
[1773475780126,0.0014,70700.0,70694.0,0.042429]
[1773475780330,0.0014,70699.0,70695.0,0.07123382]
[1773475780530,0.0014,70698.0,70695.0,0.07123382]
[1773475780836,0.31128,70707.0,70691.0,0.07123382]
[1773475781035,0.00057999,70706.0,70698.0,0.042427]
[1773475781231,0.0014,70705.0,70692.0,0.07123382]
[1773475781432,0.0014,70704.0,70695.0,0.042429]
[1773475781636,0.0014,70703.0,70695.0,0.042429]
[1773475781840,0.07672678,70703.0,70681.0,0.07123382]
[1773475782034,0.042427,70699.0,70681.0,0.07123382]
[1773475783037,0.042427,70699.0,70685.0,0.042435]
[1773475784140,0.042428,70697.0,70683.0,0.042436]
[1773475784348,0.0014,70696.0,70683.0,0.042436]
[1773475786144,0.84592996,70788.0,70692.0,0.07123382]
[1773475786145,0.0014,70695.0,70692.0,0.07123382]
[1773475786345,0.0014,70694.0,70692.0,0.07123382]
[1773475786547,0.0014,70693.0,70678.0,0.07123382]
[1773475786747,0.0014,70692.0,70684.0,0.042435]
[1773475786947,0.0014,70691.0,70684.0,0.042435]
[1773475787342,0.043832,70691.0,70677.0,0.00987]
[1773475787547,0.0014,70691.0,70679.0,0.042438]
[1773475790958,0.0014,70691.0,70662.0,0.14498897]
[1773475790959,0.042441,70675.0,70659.0,0.07410449]
[1773475791251,0.0014,70674.0,70662.0,0.07865198]
[1773475791444,0.0014,70673.0,70662.0,0.07865198]
[1773475792151,0.00016252,70673.0,70664.0,0.07865198]
[1773475792352,0.0014,70672.0,70664.0,0.07865198]
[1773475794052,0.0014,70672.0,70664.0,0.08065198]
[1773475794248,0.0014,70672.0,70664.0,0.08165198]
[1773475796352,0.042447,70665.0,70649.0,0.042456]
[1773475796545,0.31136,70686.0,70653.0,0.07865198]
[1773475796546,0.08729722,70680.0,70653.0,0.07865198]
[1773475796745,0.042444,70670.0,70655.0,0.07865198]
[1773475797058,0.07887811,70686.0,70636.0,0.0014]
[1773475797059,0.0014,70669.0,70661.0,0.07865198]
[1773475797363,0.0014,70668.0,70661.0,0.07865198]
[1773475797558,0.0014,70667.0,70661.0,0.07865198]
[1773475797857,0.0014,70666.0,70662.0,0.042448]
[1773475798053,0.0014,70665.0,70663.0,0.07865198]
[1773475798354,0.0014,70664.0,70663.0,0.07865198]
[1773475798861,0.0014,70664.0,70661.0,0.042449]
[1773475799051,0.08729722,70670.0,70654.0,0.07865198]
[1773475799360,0.0014,70669.0,70654.0,0.07865198]
[1773475799660,0.09691722,70680.0,70654.0,0.07865198]
[1773475799661,0.042448,70664.0,70654.0,0.07865198]
[1773475799847,0.0014,70663.0,70654.0,0.07865198]
[1773475800044,0.0014,70662.0,70654.0,0.07865198]
[1773475800242,0.0014,70661.0,70654.0,0.07965198]
[1773475801349,0.0014,70661.0,70654.0,0.08065198]
[1773475801852,0.0014,70661.0,70654.0,0.08165198]
[1773475803558,0.0014,70661.0,70654.0,0.08065198]
[1773475803757,0.0014,70661.0,70654.0,0.08165198]
[1773475803961,0.0014,70660.0,70654.0,0.08165198]
[1773475806662,0.0014,70660.0,70654.0,0.07965198]
[1773475807055,0.0014,70660.0,70654.0,0.07865198]
[1773475821261,0.07535964,70689.0,70652.0,0.07446342]
[1773475821464,0.042442,70673.0,70662.0,0.07446342]
[1773475821674,0.0014,70672.0,70662.0,0.07446342]
[1773475821971,0.0014,70671.0,70662.0,0.07446342]
[1773475822169,0.0014,70670.0,70662.0,0.07446342]
[1773475823064,0.0014,70670.0,70662.0,0.11691142]
[1773475823374,0.0014,70672.0,70663.0,0.07446342]
[1773475824266,0.001,70670.0,70663.0,0.07446342]
[1773475824776,0.0014,70672.0,70663.0,0.07446342]
[1773475825972,0.0014,70672.0,70664.0,0.07446342]
[1773475830278,0.042441,70675.0,70664.0,0.07446342]
[1773475830478,0.0014,70674.0,70664.0,0.07446342]
[1773475830883,0.0014,70673.0,70664.0,0.07446342]
[1773475832069,0.00883,70688.0,70660.0,0.08745122]
[1773475832377,0.0014,70687.0,70670.0,0.07446342]
[1773475833275,0.042437,70683.0,70669.0,0.042444]
[1773475833477,0.042437,70683.0,70672.0,0.07446342]
[1773475836181,0.042435,70685.0,70672.0,0.07446342]
[1773475836579,0.042436,70684.0,70672.0,0.07446342]
[1773475838082,0.0014,70686.0,70672.0,0.07446342]
[1773475838275,0.08745122,70682.0,70667.0,0.042445]
[1773475838479,0.042442,70674.0,70665.0,0.0047]
[1773475838680,0.043842,70674.0,70665.0,0.0047]
[1773475839883,0.043842,70674.0,70662.0,0.042448]
[1773475840185,0.0014,70674.0,70662.0,0.042448]
[1773475840588,0.0014,70674.0,70663.0,0.042448]
[1773475842482,0.0014,70674.0,70664.0,0.042447]
[1773475846284,0.0014,70674.0,70661.0,0.07446342]
[1773475847088,0.0014,70674.0,70666.0,0.07446342]
[1773475847287,0.0014,70673.0,70667.0,0.0768419]
[1773475847488,0.0014,70672.0,70668.0,0.0768419]
[1773475847678,0.0014,70671.0,70668.0,0.0768419]
[1773475848183,0.042439,70679.0,70668.0,0.0768419]
[1773475848379,0.0014,70682.0,70668.0,0.0768419]
[1773475848571,0.0014,70682.0,70673.0,0.0768419]
[1773475849593,0.0014,70681.0,70673.0,0.0768419]
[1773475850085,0.0014,70680.0,70673.0,0.0768419]
[1773475850975,0.042436,70684.0,70673.0,0.0768419]
[1773475851177,0.08745122,70690.0,70673.0,0.0768419]
[1773475851178,0.042435,70686.0,70674.0,0.08025706]
[1773475851390,0.0014,70685.0,70674.0,0.08025706]
[1773475851889,0.042435,70686.0,70674.0,0.08025706]
[1773475852191,0.043835,70685.0,70674.0,0.08025706]
[1773475852382,0.042435,70685.0,70674.0,0.08025706]
[1773475852687,0.0014,70684.0,70674.0,0.08025706]
[1773475852888,0.042435,70685.0,70674.0,0.08025706]
[1773475853089,0.0014,70684.0,70674.0,0.08025706]
[1773475853885,0.0014,70683.0,70674.0,0.08025706]
[1773475854290,0.0014,70682.0,70674.0,0.08025706]
[1773475858189,0.042435,70686.0,70674.0,0.08025706]
[1773475858491,0.0014,70682.0,70674.0,0.08025706]
[1773475858691,0.042435,70686.0,70674.0,0.08025706]
[1773475858890,0.0014,70682.0,70674.0,0.08025706]
[1773475859190,0.042435,70686.0,70674.0,0.08025706]
[1773475859393,0.0014,70682.0,70674.0,0.08025706]
[1773475859691,0.042435,70686.0,70674.0,0.08025706]
[1773475859890,0.0014,70682.0,70674.0,0.08025706]
[1773475860190,0.042435,70686.0,70674.0,0.08025706]
[1773475860388,0.0014,70682.0,70674.0,0.08025706]
[1773475860690,0.042435,70685.0,70674.0,0.08025706]
[1773475860892,0.0014,70682.0,70674.0,0.08025706]
[1773475861285,0.043834,70687.0,70676.0,0.08025706]
[1773475861890,0.042434,70687.0,70676.0,0.08025706]
[1773475862085,0.0014,70686.0,70676.0,0.08025706]
[1773475862280,0.043835,70686.0,70676.0,0.08025706]
[1773475863391,0.042435,70686.0,70676.0,0.08025706]
[1773475863590,0.0014,70685.0,70676.0,0.08025706]
[1773475864387,0.042435,70686.0,70676.0,0.08025706]
[1773475864592,0.0014,70684.0,70676.0,0.08025706]
[1773475864895,0.07945209,70689.0,70670.0,0.0047]
[1773475865190,0.46716,70711.0,70655.0,0.56719027]
[1773475865191,0.042441,70675.0,70662.0,0.042448]
[1773475865388,0.08745122,70672.0,70662.0,0.042448]
[1773475865592,0.08745122,70672.0,70660.0,0.04245]
[1773475865980,0.042442,70673.0,70661.0,0.042449]
[1773475866378,0.0014,70674.0,70661.0,0.042449]
[1773475866596,0.043842,70674.0,70661.0,0.042449]
[1773475868595,0.043842,70674.0,70662.0,0.042448]
[1773475877490,0.0014,70674.0,70660.0,0.08025706]
[1773475877696,0.0014,70674.0,70666.0,0.12270306]
[1773475877883,0.0014,70673.0,70667.0,0.08025706]
[1773475878087,0.0014,70672.0,70667.0,0.08025706]
[1773475878287,0.0014,70673.0,70667.0,0.08025706]
[1773475878695,0.00899,70676.0,70667.0,0.08025706]
[1773475878991,0.0014,70674.0,70667.0,0.08025706]
[1773475879194,0.042439,70678.0,70667.0,0.08025706]
[1773475879394,0.0014,70674.0,70667.0,0.08025706]
[1773475879702,0.0014,70679.0,70670.0,0.08025706]
[1773475879895,0.0014,70679.0,70667.0,0.042446]
[1773475880495,0.0014,70679.0,70669.0,0.12270106]
[1773475881895,0.0014,70679.0,70670.0,0.042444]
[1773475882098,0.0014,70679.0,70669.0,0.08025706]
[1773475882804,0.0014,70678.0,70669.0,0.08025706]
[1773475882994,0.0014,70678.0,70671.0,0.042443]
[1773475883195,0.0014,70679.0,70671.0,0.042443]
[1773475883603,0.042436,70683.0,70671.0,0.042443]
[1773475883802,0.0014,70682.0,70671.0,0.042443]
[1773475884103,0.042436,70683.0,70671.0,0.042443]
[1773475884305,0.0014,70682.0,70671.0,0.042443]
[1773475884603,0.0014,70682.0,70671.0,0.11789661]
[1773475884791,0.0014,70686.0,70672.0,0.07545361]
[1773475885807,0.043835,70686.0,70674.0,0.042441]
[1773475886299,0.042435,70686.0,70674.0,0.042441]
[1773475886605,0.042433,70688.0,70676.0,0.04244]
[1773475886904,0.042433,70688.0,70675.0,0.042441]
[1773475887313,0.0014,70687.0,70675.0,0.042441]
[1773475887716,0.0014,70687.0,70677.0,0.04244]
[1773475888414,0.0014,70687.0,70678.0,0.042439]
[1773475891118,0.0014,70687.0,70685.0,0.00469]
[1773475891820,0.0014,70686.0,70685.0,0.00469]
[1773475893023,0.0014,70687.0,70685.0,0.00469]
[1773475910631,0.042432,70691.0,70685.0,0.00469]
[1773475910820,0.0014,70689.0,70685.0,0.00469]
[1773475920242,0.042432,70691.0,70685.0,0.00469]
[1773475920541,0.08863094,70709.0,70685.0,0.00469]
[1773475920542,0.0014,70693.0,70685.0,0.00469]
[1773475921137,0.043829,70695.0,70685.0,0.00469]
[1773475921937,0.04243,70694.0,70685.0,0.00469]
[1773475923344,0.07296523,70694.0,70681.0,0.2539029]
[1773475923540,0.07296523,70684.0,70662.0,0.0765406]
[1773475923846,0.0874199,70680.0,70668.0,0.042445]
[1773475924035,0.0874199,70680.0,70669.0,0.042444]
[1773475924543,0.042437,70682.0,70669.0,0.052234]
[1773475924943,0.0014,70683.0,70670.0,0.042444]
[1773475926534,0.0014,70683.0,70674.0,0.00979]
[1773475928543,0.042437,70682.0,70674.0,0.00979]
[1773475928738,0.0014,70683.0,70674.0,0.00979]
[1773475930539,0.0014,70682.0,70674.0,0.0863306]
[1773475930742,0.0014,70681.0,70674.0,0.0863306]
[1773475930943,0.0014,70680.0,70674.0,0.0863306]
[1773475931144,0.0014,70681.0,70674.0,0.0863306]
[1773475931536,0.042432,70690.0,70674.0,0.0863306]
[1773475931737,0.0014,70689.0,70674.0,0.0863306]
[1773475931941,0.0014,70689.0,70676.0,0.04244]
[1773475932244,0.0014,70688.0,70676.0,0.04244]
[1773475932544,0.0014,70688.0,70676.0,0.1189806]
[1773475932746,0.0014,70687.0,70676.0,0.1189806]
[1773475933141,0.042432,70690.0,70676.0,0.1189806]
[1773475933445,0.0014,70689.0,70676.0,0.1189806]
[1773475933644,0.042432,70690.0,70676.0,0.1189806]
[1773475933846,0.0014,70688.0,70676.0,0.1189806]
[1773475934148,0.0014,70688.0,70677.0,0.042439]
[1773475934546,0.042432,70690.0,70677.0,0.042439]
[1773475934740,0.0014,70689.0,70677.0,0.042439]
[1773475935243,0.044348,70697.0,70684.0,0.042435]
[1773475935447,0.0014,70696.0,70680.0,0.0765406]
[1773475935647,0.0014,70696.0,70685.0,0.042435]
[1773475937650,0.001,70696.0,70685.0,0.042435]
[1773475937949,0.0014,70695.0,70686.0,0.042434]
[1773475940045,0.0014,70695.0,70687.0,0.042433]
[1773475940244,0.0014,70694.0,70688.0,0.0765406]
[1773475941546,0.0014,70697.0,70691.0,0.042431]
[1773475941748,0.0014,70699.0,70688.0,0.07881026]
[1773475942148,0.00192,70710.0,70697.0,0.042427]
[1773475942850,0.0014,70709.0,70697.0,0.042427]
[1773475943348,0.0014,70708.0,70697.0,0.042427]
[1773475943851,0.0014,70707.0,70697.0,0.042427]
[1773475944255,0.04342,70710.0,70697.0,0.042427]
[1773475944454,0.0014,70709.0,70697.0,0.042427]
[1773475944960,0.04242,70710.0,70697.0,0.042427]
[1773475944961,0.0014,70708.0,70697.0,0.042427]
[1773475945346,0.0014,70707.0,70697.0,0.042427]
[1773475946058,0.0014,70706.0,70697.0,0.042427]
[1773475946547,0.0014,70705.0,70697.0,0.042427]
[1773475946946,0.04242,70710.0,70697.0,0.042427]
[1773475947152,0.0024,70709.0,70697.0,0.042427]
[1773475947347,0.0014,70708.0,70697.0,0.042427]
[1773475947550,0.0014,70707.0,70697.0,0.042427]
[1773475948149,0.0014,70706.0,70697.0,0.042427]
[1773475948655,0.0014,70705.0,70697.0,0.042427]
[1773475949059,0.04242,70710.0,70697.0,0.042427]
[1773475949251,0.0014,70709.0,70697.0,0.042427]
[1773475949759,0.04242,70710.0,70699.0,0.0873701]
[1773475949959,0.0014,70709.0,70698.0,0.07881026]
[1773475950460,0.0014,70708.0,70698.0,0.12123726]
[1773475950968,0.0014,70707.0,70698.0,0.12123726]
[1773475951455,0.0014,70706.0,70696.0,0.042428]
[1773475951959,0.0014,70705.0,70696.0,0.042428]
[1773475958253,0.0014,70705.0,70697.0,0.042427]
[1773475960167,0.0014,70704.0,70695.0,0.07881026]
[1773475960358,0.042418,70713.0,70700.0,0.042426]
[1773475960563,0.0014,70712.0,70702.0,0.042425]
[1773475960758,0.07900211,70719.0,70702.0,0.042425]
[1773475960965,0.23092031,70718.0,70702.0,0.042425]
[1773475961163,0.042418,70714.0,70702.0,0.042425]
[1773475961364,0.0014,70713.0,70702.0,0.042425]
[1773475961866,0.0014,70712.0,70702.0,0.042425]
[1773475962261,0.042418,70714.0,70702.0,0.042425]
[1773475962467,0.0014,70713.0,70702.0,0.042425]
[1773475962668,0.0024,70713.0,70702.0,0.042425]
[1773475962861,0.0014,70712.0,70702.0,0.042425]
[1773475963056,0.0014,70712.0,70700.0,0.20860636]
[1773475963262,0.0014,70712.0,70700.0,0.12123626]
[1773475964566,0.0024,70712.0,70700.0,0.12123626]
[1773475965867,0.04242,70711.0,70700.0,0.042426]
[1773475966870,0.0024,70712.0,70700.0,0.042426]
[1773475967066,0.001,70711.0,70700.0,0.042426]
[1773475970569,0.0014,70712.0,70700.0,0.042426]
[1773475971370,0.0014,70712.0,70696.0,0.07881026]
[1773475971870,0.0014,70712.0,70691.0,0.07972398]
[1773475972070,0.0014,70712.0,70692.0,0.07972398]
[1773475972862,0.0014,70712.0,70700.0,0.042426]
[1773475975269,0.042422,70708.0,70690.0,0.07972398]
[1773475975472,0.042422,70708.0,70696.0,0.042428]
[1773475976473,0.11630406,70710.0,70697.0,0.042427]
[1773475976971,0.11630406,70710.0,70698.0,0.042427]
[1773475977173,0.04242,70710.0,70698.0,0.042427]
[1773475978970,0.04342,70710.0,70698.0,0.042427]
[1773475981681,0.08075196,70709.0,70688.0,0.07972398]
[1773475981975,0.042421,70709.0,70696.0,0.042428]
[1773475982767,0.0014,70708.0,70696.0,0.042428]
[1773475982967,0.0014,70708.0,70697.0,0.042427]
[1773475983171,0.0014,70708.0,70698.0,0.042427]
[1773475983374,0.001,70709.0,70692.0,0.07972398]
[1773475983572,0.001,70709.0,70691.0,0.07972398]
[1773475983772,0.0014,70708.0,70701.0,0.042425]
[1773475984672,0.0014,70707.0,70701.0,0.042425]
[1773475984871,0.0014,70706.0,70701.0,0.12214898]
[1773475985072,0.042418,70714.0,70701.0,0.12214898]
[1773475985273,0.27398322,70713.0,70701.0,0.12214898]
[1773475985472,0.23156522,70712.0,70701.0,0.07972398]
[1773475985675,0.23156522,70711.0,70701.0,0.07972398]
[1773475985871,0.31132,70728.0,70701.0,0.07972398]
[1773475986071,0.042415,70718.0,70704.0,0.042423]
[1773475986279,0.22549042,70717.0,70704.0,0.042423]
[1773475986482,0.22689042,70717.0,70701.0,0.07972398]
[1773475986781,0.22689042,70716.0,70706.0,0.042422]
[1773475986979,0.0014,70716.0,70706.0,0.042422]
[1773475988081,0.0014,70715.0,70706.0,0.042422]
[1773475988379,0.0014,70714.0,70709.0,0.04242]
[1773475988571,0.0014,70713.0,70701.0,0.07972398]
[1773475988776,0.0014,70712.0,70701.0,0.07972398]
[1773475989071,0.042413,70722.0,70701.0,0.07972398]
[1773475989274,0.2269047,70721.0,70701.0,0.07972398]
[1773475989481,0.2255047,70720.0,70701.0,0.07972398]
[1773475989680,0.0014,70721.0,70701.0,0.07972398]
[1773475989877,0.22547681,70720.0,70701.0,0.07972398]
[1773475990077,0.22547681,70720.0,70700.0,0.07388406]
[1773475990078,0.0014,70721.0,70710.0,0.04242]
[1773475990282,0.22337146,70720.0,70710.0,0.04242]
[1773475990483,0.0014,70721.0,70710.0,0.04242]
[1773475990678,0.22334751,70720.0,70710.0,0.04242]
[1773475990884,0.0014,70721.0,70710.0,0.04242]
[1773475991080,0.22334751,70720.0,70710.0,0.04242]
[1773475991284,0.0014,70721.0,70705.0,0.07972398]
[1773475991688,0.0024,70721.0,70705.0,0.07972398]
[1773475992584,0.0024,70721.0,70713.0,0.042418]
[1773475993792,0.0014,70721.0,70705.0,0.07972398]
[1773475994091,0.0014,70721.0,70711.0,0.042419]
[1773475994491,0.0014,70720.0,70711.0,0.042419]
[1773475998996,0.0007069,70731.0,70713.0,0.042418]
[1773475999198,0.22453471,70730.0,70713.0,0.12214198]
[1773475999398,0.22313471,70729.0,70713.0,0.12214198]
[1773475999593,0.22313471,70728.0,70713.0,0.12214198]
[1773475999788,0.22313471,70727.0,70713.0,0.12214198]
[1773476000097,0.07526016,70730.0,70713.0,0.12214198]
[1773476000298,0.22308906,70729.0,70713.0,0.12214198]
[1773476000497,0.22308906,70728.0,70713.0,0.12214198]
[1773476000700,0.22308906,70727.0,70713.0,0.12214198]
[1773476000995,0.042411,70726.0,70713.0,0.12214198]
[1773476001400,0.04241,70727.0,70715.0,0.042417]
[1773476001696,0.04241,70727.0,70713.0,0.12214198]
[1773476002393,0.042411,70726.0,70713.0,0.12214198]
[1773476004306,0.042409,70729.0,70716.0,0.042416]
[1773476006004,0.043409,70729.0,70716.0,0.042416]
[1773476010316,0.038409,70729.0,70716.0,0.042416]
[1773476011511,0.038409,70729.0,70717.0,0.042415]